Workbook

Sheet MĒRĶI
B1: =TODAY() -> 2022-12-09 | C1: MĒRĶI | J1: Vingrinājumi | K1: Diēta
B2: SĀKUMA DATUMS | C2: DIĒTAS UN VINGRINĀJUMU ŽURNĀLS
B3: =SākumaDatums+121 -> 2023-04-09 | C3: DIĒTAS ANALĪZE
B4: BEIGU DATUMS
B5: 220.00
B6: SĀKUMA SVARS
B7: 180.00 | C7: VINGRINĀJUMU ANALĪZE
B8: BEIGU SVARS
B9: =SākumaSvars-BeiguSvars -> 40
B10: MĒRĶA ZUDUMS
B11: =BeiguDatums-SākumaDatums -> 121
B12: DIENAS LĪDZ MĒRĶIM
B13: =MērķaSvars/B11 -> 0.33
B14: ZUDUMS DIENĀ

Sheet DIĒTA
B1: DIĒTA | G1: Mērķi | H1: Vingrinājumi
B2: =Apakšvirsraksts -> DIĒTAS UN VINGRINĀJUMU ŽURNĀLS
B3: DATUMS | C3: LAIKS | D3: APRAKSTS | E3: KALORIJAS | F3: OGĻHIDRĀTI | G3: OLBALTUMVIELAS | H3: TAUKI | I3: PIEZĪMES
B4: =SākumaDatums -> 2022-12-09 | C4: 07:00:00 | D4: Kafija | E4: 1 | F4: 0 | G4: 0 | H4: 0 | I4: Rīta kafija
B5: =SākumaDatums -> 2022-12-09 | C5: 08:00:00 | D5: Bagete | E5: 10 | F5: 10 | G5: 2 | H5: 10 | I5: Vieglas brokastis
B6: =SākumaDatums -> 2022-12-09 | C6: 12:00:00 | D6: Pusdienas | E6: 283 | F6: 46 | G6: 18 | H6: 4 | I6: Tītara sviestmaize
B7: =SākumaDatums -> 2022-12-09 | C7: 19:00:00 | D7: Vakariņas | E7: 500 | F7: 42 | G7: 35 | H7: 25 | I7: Sacepums
B8: =SākumaDatums+1 -> 2022-12-10 | C8: 07:00:00 | D8: Kafija | E8: 1 | F8: 0 | G8: 0 | H8: 0 | I8: Rīta kafija
B9: =SākumaDatums+1 -> 2022-12-10 | C9: 08:00:00 | D9: Grauzdiņš | E9: 10 | F9: 10 | G9: 2 | H9: 10 | I9: Vieglas brokastis
B10: =SākumaDatums+1 -> 2022-12-10 | C10: 12:00:00 | D10: Pusdienas | E10: 189 | F10: 26 | G10: 3 | H10: 8 | I10: Sviestmaize
B11: =SākumaDatums+1 -> 2022-12-10 | C11: 19:00:00 | D11: Vakariņas | E11: 477 | F11: 62 | G11: 14 | H11: 21 | I11: Vakariņas
B12: =SākumaDatums+2 -> 2022-12-11 | C12: 07:00:00 | D12: Kafija | E12: 1 | F12: 0 | G12: 0 | H12: 0 | I12: Rīta kafija
B13: =SākumaDatums+2 -> 2022-12-11 | C13: 08:00:00 | D13: Bagete | E13: 245 | F13: 48 | G13: 10 | H13: 2 | I13: Vieglas brokastis
B14: =SākumaDatums+2 -> 2022-12-11 | C14: 12:00:00 | D14: Pusdienas | E14: 247 | F14: 11 | G14: 43 | H14: 5 | I14: Salāti
B15: =SākumaDatums+2 -> 2022-12-11 | C15: 19:00:00 | D15: Vakariņas | E15: 456 | F15: 64 | G15: 32 | H15: 22 | I15: Vakariņas
B16: =SākumaDatums+3 -> 2022-12-12 | C16: 07:00:00 | D16: Grauzdiņš | E16: 10 | F16: 10 | G16: 2 | H16: 10 | I16: Vieglas brokastis
B17: =SākumaDatums+3 -> 2022-12-12 | C17: 10:00:00 | D17: Kafija | E17: 135 | F17: 12 | G17: 9 | H17: 6 | I17: Latte
B18: =SākumaDatums+3 -> 2022-12-12 | C18: 12:15:00 | D18: Pusdienas | E18: 184 | F18: 7 | G18: 5 | H18: 15 | I18: Salāti
B19: =SākumaDatums+5 -> 2022-12-14 | C19: 19:00:00 | D19: Vakariņas | E19: 477 | F19: 62 | G19: 14 | H19: 21 | I19: Vakariņas

Sheet VINGRINĀJUMI
B1: VINGRINĀJUMI | F1: Diēta | G1: Mērķi
B2: =Apakšvirsraksts -> DIĒTAS UN VINGRINĀJUMU ŽURNĀLS
B3: DATUMS | C3: ILGUMS (MINŪTES) | D3: SADEDZINĀTĀS KALORIJAS | E3: PIEZĪMES
B4: =SākumaDatums+4 -> 2022-12-13 | C4: 30 | D4: 120 | E4: Treniņš uz skriešanas trenažiera
B5: =B4+1 -> 2022-12-14 | C5: 60 | D5: 180 | E5: Viegla aerobika
B6: =B5+1 -> 2022-12-15 | C6: 60 | D6: 350 | E6: Ļoti smags treniņš
B7: =B6+1 -> 2022-12-16 | C7: 30 | D7: 150 | E7: Treniņš uz skriešanas trenažiera
B8: 2022-12-17 | C8: 25 | D8: 125 | E8: Skriešana
B9: 2022-12-18 | C9: 20 | D9: 285 | E9: Treniņš uz skriešanas trenažiera
B10: 2022-12-19 | C10: 40 | D10: 205 | E10: Skriešana
B11: 2022-12-20 | C11: 30 | D11: 335 | E11: Skriešana
B12: 2022-12-21 | C12: 40 | D12: 175 | E12: Skriešana
B13: 2022-12-22 | C13: 45 | D13: 325 | E13: Treniņš uz skriešanas trenažiera
B14: 2022-12-23 | C14: 40 | D14: 270 | E14: Skriešana
B15: 2022-12-24 | C15: 20 | D15: 295 | E15: Treniņš uz skriešanas trenažiera
B16: 2022-12-25 | C16: 45 | D16: 350 | E16: Skriešana
B17: 2022-12-26 | C17: 35 | D17: 320 | E17: Skriešana
B18: 2022-12-27 | C18: 40 | D18: 290 | E18: Skriešana
B19: =B18+1 -> 2022-12-28 | C19: 25 | D19: 265 | E19: Treniņš uz skriešanas trenažiera
B20: 2022-12-29 | C20: 20 | D20: 195 | E20: Skriešana

Sheet Diagrammas aprēķini (hidden)
B2: DIĒTAS ANALĪZES DIAGRAMMU DATI
B4: Sākuma rinda | C4: =ROW(Diēta[[#Headers],[DATUMS]])+1 -> 4 | D4: DATUMS | E4: DIENA | F4: TAUKI | G4: OLBALTUMVIELAS | H4: OGĻHIDRĀTI | I4: KALORIJAS | J4: Daudzums
B5: Pēdējais diētas ieraksts | C5: =MATCH(9.99E+307,Diēta[DATUMS])+DiētasRindasSākums-1 -> 19 | D5: =IFERROR(IF(INDEX(Diēta[],DiētasBeiguDatums-DiētasRindasSākums-J5,1)<>"",INDEX(Diēta[],DiētasBeiguDatums-DiētasRindasSākums-J5,1),""),"") -> 2022-12-09 | E5: =UPPER(TEXT(D5,"DDD")) -> PIEKTD | F5: =IFERROR((IF(INDEX(Diēta[],DiētasBeiguDatums-DiētasRindasSākums-J5,1)<>"",INDEX(Diēta[],DiētasBeiguDatums-DiētasRindasSākums-J5,7),NA())),NA()) -> 3.5 | G5: =IFERROR((IF(INDEX(Diēta[],DiētasBeiguDatums-DiētasRindasSākums-J5,1)<>"",INDEX(Diēta[],DiētasBeiguDatums-DiētasRindasSākums-J5,6),NA())),NA()) -> 18 | H5: =IFERROR((IF(INDEX(Diēta[],DiētasBeiguDatums-DiētasRindasSākums-J5,1)<>"",INDEX(Diēta[],DiētasBeiguDatums-DiētasRindasSākums-J5,5),NA())),NA()) -> 46 | I5: =IFERROR((IF(INDEX(Diēta[],DiētasBeiguDatums-DiētasRindasSākums-J5,1)<>"",INDEX(Diēta[],DiētasBeiguDatums-DiētasRindasSākums-J5,4),NA())),NA()) -> 283 | J5: 12
D6: =IFERROR(IF(INDEX(Diēta[],DiētasBeiguDatums-DiētasRindasSākums-J6,1)<>"",INDEX(Diēta[],DiētasBeiguDatums-DiētasRindasSākums-J6,1),""),"") -> 2022-12-09 | E6: PIEKTD | F6: =IFERROR((IF(INDEX(Diēta[],DiētasBeiguDatums-DiētasRindasSākums-J6,1)<>"",INDEX(Diēta[],DiētasBeiguDatums-DiētasRindasSākums-J6,7),NA())),NA()) -> 25 | G6: =IFERROR((IF(INDEX(Diēta[],DiētasBeiguDatums-DiētasRindasSākums-J6,1)<>"",INDEX(Diēta[],DiētasBeiguDatums-DiētasRindasSākums-J6,6),NA())),NA()) -> 35 | H6: =IFERROR((IF(INDEX(Diēta[],DiētasBeiguDatums-DiētasRindasSākums-J6,1)<>"",INDEX(Diēta[],DiētasBeiguDatums-DiētasRindasSākums-J6,5),NA())),NA()) -> 42 | I6: =IFERROR((IF(INDEX(Diēta[],DiētasBeiguDatums-DiētasRindasSākums-J6,1)<>"",INDEX(Diēta[],DiētasBeiguDatums-DiētasRindasSākums-J6,4),NA())),NA()) -> 500 | J6: 11
D7: =IFERROR(IF(INDEX(Diēta[],DiētasBeiguDatums-DiētasRindasSākums-J7,1)<>"",INDEX(Diēta[],DiētasBeiguDatums-DiētasRindasSākums-J7,1),""),"") -> 2022-12-10 | E7: SESTD | F7: =IFERROR((IF(INDEX(Diēta[],DiētasBeiguDatums-DiētasRindasSākums-J7,1)<>"",INDEX(Diēta[],DiētasBeiguDatums-DiētasRindasSākums-J7,7),NA())),NA()) -> 0 | G7: =IFERROR((IF(INDEX(Diēta[],DiētasBeiguDatums-DiētasRindasSākums-J7,1)<>"",INDEX(Diēta[],DiētasBeiguDatums-DiētasRindasSākums-J7,6),NA())),NA()) -> 0 | H7: =IFERROR((IF(INDEX(Diēta[],DiētasBeiguDatums-DiētasRindasSākums-J7,1)<>"",INDEX(Diēta[],DiētasBeiguDatums-DiētasRindasSākums-J7,5),NA())),NA()) -> 0 | I7: =IFERROR((IF(INDEX(Diēta[],DiētasBeiguDatums-DiētasRindasSākums-J7,1)<>"",INDEX(Diēta[],DiētasBeiguDatums-DiētasRindasSākums-J7,4),NA())),NA()) -> 1 | J7: 10
D8: =IFERROR(IF(INDEX(Diēta[],DiētasBeiguDatums-DiētasRindasSākums-J8,1)<>"",INDEX(Diēta[],DiētasBeiguDatums-DiētasRindasSākums-J8,1),""),"") -> 2022-12-10 | E8: SESTD | F8: =IFERROR((IF(INDEX(Diēta[],DiētasBeiguDatums-DiētasRindasSākums-J8,1)<>"",INDEX(Diēta[],DiētasBeiguDatums-DiētasRindasSākums-J8,7),NA())),NA()) -> 10 | G8: =IFERROR((IF(INDEX(Diēta[],DiētasBeiguDatums-DiētasRindasSākums-J8,1)<>"",INDEX(Diēta[],DiētasBeiguDatums-DiētasRindasSākums-J8,6),NA())),NA()) -> 2 | H8: =IFERROR((IF(INDEX(Diēta[],DiētasBeiguDatums-DiētasRindasSākums-J8,1)<>"",INDEX(Diēta[],DiētasBeiguDatums-DiētasRindasSākums-J8,5),NA())),NA()) -> 10 | I8: =IFERROR((IF(INDEX(Diēta[],DiētasBeiguDatums-DiētasRindasSākums-J8,1)<>"",INDEX(Diēta[],DiētasBeiguDatums-DiētasRindasSākums-J8,4),NA())),NA()) -> 10 | J8: 9
D9: =IFERROR(IF(INDEX(Diēta[],DiētasBeiguDatums-DiētasRindasSākums-J9,1)<>"",INDEX(Diēta[],DiētasBeiguDatums-DiētasRindasSākums-J9,1),""),"") -> 2022-12-10 | E9: SESTD | F9: =IFERROR((IF(INDEX(Diēta[],DiētasBeiguDatums-DiētasRindasSākums-J9,1)<>"",INDEX(Diēta[],DiētasBeiguDatums-DiētasRindasSākums-J9,7),NA())),NA()) -> 8 | G9: =IFERROR((IF(INDEX(Diēta[],DiētasBeiguDatums-DiētasRindasSākums-J9,1)<>"",INDEX(Diēta[],DiētasBeiguDatums-DiētasRindasSākums-J9,6),NA())),NA()) -> 3 | H9: =IFERROR((IF(INDEX(Diēta[],DiētasBeiguDatums-DiētasRindasSākums-J9,1)<>"",INDEX(Diēta[],DiētasBeiguDatums-DiētasRindasSākums-J9,5),NA())),NA()) -> 26 | I9: =IFERROR((IF(INDEX(Diēta[],DiētasBeiguDatums-DiētasRindasSākums-J9,1)<>"",INDEX(Diēta[],DiētasBeiguDatums-DiētasRindasSākums-J9,4),NA())),NA()) -> 189 | J9: 8
D10: =IFERROR(IF(INDEX(Diēta[],DiētasBeiguDatums-DiētasRindasSākums-J10,1)<>"",INDEX(Diēta[],DiētasBeiguDatums-DiētasRindasSākums-J10,1),""),"") -> 2022-12-10 | E10: SESTD | F10: =IFERROR((IF(INDEX(Diēta[],DiētasBeiguDatums-DiētasRindasSākums-J10,1)<>"",INDEX(Diēta[],DiētasBeiguDatums-DiētasRindasSākums-J10,7),NA())),NA()) -> 21 | G10: =IFERROR((IF(INDEX(Diēta[],DiētasBeiguDatums-DiētasRindasSākums-J10,1)<>"",INDEX(Diēta[],DiētasBeiguDatums-DiētasRindasSākums-J10,6),NA())),NA()) -> 13.5 | H10: =IFERROR((IF(INDEX(Diēta[],DiētasBeiguDatums-DiētasRindasSākums-J10,1)<>"",INDEX(Diēta[],DiētasBeiguDatums-DiētasRindasSākums-J10,5),NA())),NA()) -> 62 | I10: =IFERROR((IF(INDEX(Diēta[],DiētasBeiguDatums-DiētasRindasSākums-J10,1)<>"",INDEX(Diēta[],DiētasBeiguDatums-DiētasRindasSākums-J10,4),NA())),NA()) -> 477 | J10: 7
D11: =IFERROR(IF(INDEX(Diēta[],DiētasBeiguDatums-DiētasRindasSākums-J11,1)<>"",INDEX(Diēta[],DiētasBeiguDatums-DiētasRindasSākums-J11,1),""),"") -> 2022-12-11 | E11: SVĒTD | F11: =IFERROR((IF(INDEX(Diēta[],DiētasBeiguDatums-DiētasRindasSākums-J11,1)<>"",INDEX(Diēta[],DiētasBeiguDatums-DiētasRindasSākums-J11,7),NA())),NA()) -> 0 | G11: =IFERROR((IF(INDEX(Diēta[],DiētasBeiguDatums-DiētasRindasSākums-J11,1)<>"",INDEX(Diēta[],DiētasBeiguDatums-DiētasRindasSākums-J11,6),NA())),NA()) -> 0 | H11: =IFERROR((IF(INDEX(Diēta[],DiētasBeiguDatums-DiētasRindasSākums-J11,1)<>"",INDEX(Diēta[],DiētasBeiguDatums-DiētasRindasSākums-J11,5),NA())),NA()) -> 0 | I11: =IFERROR((IF(INDEX(Diēta[],DiētasBeiguDatums-DiētasRindasSākums-J11,1)<>"",INDEX(Diēta[],DiētasBeiguDatums-DiētasRindasSākums-J11,4),NA())),NA()) -> 1 | J11: 6
D12: =IFERROR(IF(INDEX(Diēta[],DiētasBeiguDatums-DiētasRindasSākums-J12,1)<>"",INDEX(Diēta[],DiētasBeiguDatums-DiētasRindasSākums-J12,1),""),"") -> 2022-12-11 | E12: SVĒTD | F12: =IFERROR((IF(INDEX(Diēta[],DiētasBeiguDatums-DiētasRindasSākums-J12,1)<>"",INDEX(Diēta[],DiētasBeiguDatums-DiētasRindasSākums-J12,7),NA())),NA()) -> 1.5 | G12: =IFERROR((IF(INDEX(Diēta[],DiētasBeiguDatums-DiētasRindasSākums-J12,1)<>"",INDEX(Diēta[],DiētasBeiguDatums-DiētasRindasSākums-J12,6),NA())),NA()) -> 10 | H12: =IFERROR((IF(INDEX(Diēta[],DiētasBeiguDatums-DiētasRindasSākums-J12,1)<>"",INDEX(Diēta[],DiētasBeiguDatums-DiētasRindasSākums-J12,5),NA())),NA()) -> 48 | I12: =IFERROR((IF(INDEX(Diēta[],DiētasBeiguDatums-DiētasRindasSākums-J12,1)<>"",INDEX(Diēta[],DiētasBeiguDatums-DiētasRindasSākums-J12,4),NA())),NA()) -> 245 | J12: 5
D13: =IFERROR(IF(INDEX(Diēta[],DiētasBeiguDatums-DiētasRindasSākums-J13,1)<>"",INDEX(Diēta[],DiētasBeiguDatums-DiētasRindasSākums-J13,1),""),"") -> 2022-12-11 | E13: SVĒTD | F13: =IFERROR((IF(INDEX(Diēta[],DiētasBeiguDatums-DiētasRindasSākums-J13,1)<>"",INDEX(Diēta[],DiētasBeiguDatums-DiētasRindasSākums-J13,7),NA())),NA()) -> 5 | G13: =IFERROR((IF(INDEX(Diēta[],DiētasBeiguDatums-DiētasRindasSākums-J13,1)<>"",INDEX(Diēta[],DiētasBeiguDatums-DiētasRindasSākums-J13,6),NA())),NA()) -> 43 | H13: =IFERROR((IF(INDEX(Diēta[],DiētasBeiguDatums-DiētasRindasSākums-J13,1)<>"",INDEX(Diēta[],DiētasBeiguDatums-DiētasRindasSākums-J13,5),NA())),NA()) -> 11 | I13: =IFERROR((IF(INDEX(Diēta[],DiētasBeiguDatums-DiētasRindasSākums-J13,1)<>"",INDEX(Diēta[],DiētasBeiguDatums-DiētasRindasSākums-J13,4),NA())),NA()) -> 247 | J13: 4
D14: =IFERROR(IF(INDEX(Diēta[],DiētasBeiguDatums-DiētasRindasSākums-J14,1)<>"",INDEX(Diēta[],DiētasBeiguDatums-DiētasRindasSākums-J14,1),""),"") -> 2022-12-11 | E14: SVĒTD | F14: =IFERROR((IF(INDEX(Diēta[],DiētasBeiguDatums-DiētasRindasSākums-J14,1)<>"",INDEX(Diēta[],DiētasBeiguDatums-DiētasRindasSākums-J14,7),NA())),NA()) -> 22 | G14: =IFERROR((IF(INDEX(Diēta[],DiētasBeiguDatums-DiētasRindasSākums-J14,1)<>"",INDEX(Diēta[],DiētasBeiguDatums-DiētasRindasSākums-J14,6),NA())),NA()) -> 32 | H14: =IFERROR((IF(INDEX(Diēta[],DiētasBeiguDatums-DiētasRindasSākums-J14,1)<>"",INDEX(Diēta[],DiētasBeiguDatums-DiētasRindasSākums-J14,5),NA())),NA()) -> 64 | I14: =IFERROR((IF(INDEX(Diēta[],DiētasBeiguDatums-DiētasRindasSākums-J14,1)<>"",INDEX(Diēta[],DiētasBeiguDatums-DiētasRindasSākums-J14,4),NA())),NA()) -> 456 | J14: 3
D15: =IFERROR(IF(INDEX(Diēta[],DiētasBeiguDatums-DiētasRindasSākums-J15,1)<>"",INDEX(Diēta[],DiētasBeiguDatums-DiētasRindasSākums-J15,1),""),"") -> 2022-12-12 | E15: PIRMD | F15: =IFERROR((IF(INDEX(Diēta[],DiētasBeiguDatums-DiētasRindasSākums-J15,1)<>"",INDEX(Diēta[],DiētasBeiguDatums-DiētasRindasSākums-J15,7),NA())),NA()) -> 10 | G15: =IFERROR((IF(INDEX(Diēta[],DiētasBeiguDatums-DiētasRindasSākums-J15,1)<>"",INDEX(Diēta[],DiētasBeiguDatums-DiētasRindasSākums-J15,6),NA())),NA()) -> 2 | H15: =IFERROR((IF(INDEX(Diēta[],DiētasBeiguDatums-DiētasRindasSākums-J15,1)<>"",INDEX(Diēta[],DiētasBeiguDatums-DiētasRindasSākums-J15,5),NA())),NA()) -> 10 | I15: =IFERROR((IF(INDEX(Diēta[],DiētasBeiguDatums-DiētasRindasSākums-J15,1)<>"",INDEX(Diēta[],DiētasBeiguDatums-DiētasRindasSākums-J15,4),NA())),NA()) -> 10 | J15: 2
D16: =IFERROR(IF(INDEX(Diēta[],DiētasBeiguDatums-DiētasRindasSākums-J16,1)<>"",INDEX(Diēta[],DiētasBeiguDatums-DiētasRindasSākums-J16,1),""),"") -> 2022-12-12 | E16: PIRMD | F16: =IFERROR((IF(INDEX(Diēta[],DiētasBeiguDatums-DiētasRindasSākums-J16,1)<>"",INDEX(Diēta[],DiētasBeiguDatums-DiētasRindasSākums-J16,7),NA())),NA()) -> 5.51 | G16: =IFERROR((IF(INDEX(Diēta[],DiētasBeiguDatums-DiētasRindasSākums-J16,1)<>"",INDEX(Diēta[],DiētasBeiguDatums-DiētasRindasSākums-J16,6),NA())),NA()) -> 8.81 | H16: =IFERROR((IF(INDEX(Diēta[],DiētasBeiguDatums-DiētasRindasSākums-J16,1)<>"",INDEX(Diēta[],DiētasBeiguDatums-DiētasRindasSākums-J16,5),NA())),NA()) -> 12.36 | I16: =IFERROR((IF(INDEX(Diēta[],DiētasBeiguDatums-DiētasRindasSākums-J16,1)<>"",INDEX(Diēta[],DiētasBeiguDatums-DiētasRindasSākums-J16,4),NA())),NA()) -> 135 | J16: 1
D17: =IFERROR(IF(INDEX(Diēta[],DiētasBeiguDatums-DiētasRindasSākums-J17,1)<>"",INDEX(Diēta[],DiētasBeiguDatums-DiētasRindasSākums-J17,1),""),"") -> 2022-12-12 | E17: PIRMD | F17: =IFERROR((IF(INDEX(Diēta[],DiētasBeiguDatums-DiētasRindasSākums-J17,1)<>"",INDEX(Diēta[],DiētasBeiguDatums-DiētasRindasSākums-J17,7),NA())),NA()) -> 15 | G17: =IFERROR((IF(INDEX(Diēta[],DiētasBeiguDatums-DiētasRindasSākums-J17,1)<>"",INDEX(Diēta[],DiētasBeiguDatums-DiētasRindasSākums-J17,6),NA())),NA()) -> 5.43 | H17: =IFERROR((IF(INDEX(Diēta[],DiētasBeiguDatums-DiētasRindasSākums-J17,1)<>"",INDEX(Diēta[],DiētasBeiguDatums-DiētasRindasSākums-J17,5),NA())),NA()) -> 7 | I17: =IFERROR((IF(INDEX(Diēta[],DiētasBeiguDatums-DiētasRindasSākums-J17,1)<>"",INDEX(Diēta[],DiētasBeiguDatums-DiētasRindasSākums-J17,4),NA())),NA()) -> 184 | J17: 0
D18: =IFERROR(IF(INDEX(Diēta[],DiētasBeiguDatums-DiētasRindasSākums-J18,1)<>"",INDEX(Diēta[],DiētasBeiguDatums-DiētasRindasSākums-J18,1)),"") -> 2022-12-14 | E18: TREŠD | F18: =IFERROR((IF(INDEX(Diēta[],DiētasBeiguDatums-DiētasRindasSākums-J18,1)<>"",INDEX(Diēta[],DiētasBeiguDatums-DiētasRindasSākums-J18,7),NA())),NA()) -> 21 | G18: =IFERROR((IF(INDEX(Diēta[],DiētasBeiguDatums-DiētasRindasSākums-J18,1)<>"",INDEX(Diēta[],DiētasBeiguDatums-DiētasRindasSākums-J18,6),NA())),NA()) -> 13.5 | H18: =IFERROR((IF(INDEX(Diēta[],DiētasBeiguDatums-DiētasRindasSākums-J18,1)<>"",INDEX(Diēta[],DiētasBeiguDatums-DiētasRindasSākums-J18,5),NA())),NA()) -> 62 | I18: =IFERROR((IF(INDEX(Diēta[],DiētasBeiguDatums-DiētasRindasSākums-J18,1)<>"",INDEX(Diēta[],DiētasBeiguDatums-DiētasRindasSākums-J18,4),NA())),NA()) -> 477 | J18: -1
B20: VINGRINĀJUMU ANALĪZES DIAGRAMMU DATI
B22: Sākuma rinda | C22: =ROW(Vingrinājumi[[#Headers],[DATUMS]])+1 -> 4 | D22: DATUMS | E22: DIENA | F22: ILGUMS (MINŪTES) | G22: SADEDZINĀTĀS KALORIJAS | H22: Daudzums
B23: Pēdējais vingrinājuma ieraksts | C23: =MATCH(9.99E+307,Vingrinājumi[DATUMS])+VingrinājumuRindasSākums-1 -> 20 | D23: =IFERROR(IF(INDEX(Vingrinājumi[],VingrinājumuBeiguDatums-VingrinājumuRindasSākums-H23,1)<>"",INDEX(Vingrinājumi[],VingrinājumuBeiguDatums-VingrinājumuRindasSākums-H23,1)),"") -> 2022-12-29 | E23: =UPPER(TEXT(D23,"DDD")) -> CETURTD | F23: =IFERROR((IF(INDEX(Vingrinājumi[],VingrinājumuBeiguDatums-VingrinājumuRindasSākums-H23,1)<>"",INDEX(Vingrinājumi[],VingrinājumuBeiguDatums-VingrinājumuRindasSākums-H23,2),0)),0) -> 20 | G23: =IFERROR((IF(INDEX(Vingrinājumi[],VingrinājumuBeiguDatums-VingrinājumuRindasSākums-H23,2)<>"",INDEX(Vingrinājumi[],VingrinājumuBeiguDatums-VingrinājumuRindasSākums-H23,3),0)),0) -> 195 | H23: -1
D24: =IFERROR(IF(INDEX(Vingrinājumi[],VingrinājumuBeiguDatums-VingrinājumuRindasSākums-H24,1)<>"",INDEX(Vingrinājumi[],VingrinājumuBeiguDatums-VingrinājumuRindasSākums-H24,1)),"") -> 2022-12-28 | E24: TREŠD | F24: =IFERROR((IF(INDEX(Vingrinājumi[],VingrinājumuBeiguDatums-VingrinājumuRindasSākums-H24,1)<>"",INDEX(Vingrinājumi[],VingrinājumuBeiguDatums-VingrinājumuRindasSākums-H24,2),0)),0) -> 25 | G24: =IFERROR((IF(INDEX(Vingrinājumi[],VingrinājumuBeiguDatums-VingrinājumuRindasSākums-H24,2)<>"",INDEX(Vingrinājumi[],VingrinājumuBeiguDatums-VingrinājumuRindasSākums-H24,3),0)),0) -> 265 | H24: 0
D25: =IFERROR(IF(INDEX(Vingrinājumi[],VingrinājumuBeiguDatums-VingrinājumuRindasSākums-H25,1)<>"",INDEX(Vingrinājumi[],VingrinājumuBeiguDatums-VingrinājumuRindasSākums-H25,1)),"") -> 2022-12-27 | E25: OTRD | F25: =IFERROR((IF(INDEX(Vingrinājumi[],VingrinājumuBeiguDatums-VingrinājumuRindasSākums-H25,1)<>"",INDEX(Vingrinājumi[],VingrinājumuBeiguDatums-VingrinājumuRindasSākums-H25,2),0)),0) -> 40 | G25: =IFERROR((IF(INDEX(Vingrinājumi[],VingrinājumuBeiguDatums-VingrinājumuRindasSākums-H25,2)<>"",INDEX(Vingrinājumi[],VingrinājumuBeiguDatums-VingrinājumuRindasSākums-H25,3),0)),0) -> 290 | H25: 1
D26: =IFERROR(IF(INDEX(Vingrinājumi[],VingrinājumuBeiguDatums-VingrinājumuRindasSākums-H26,1)<>"",INDEX(Vingrinājumi[],VingrinājumuBeiguDatums-VingrinājumuRindasSākums-H26,1)),"") -> 2022-12-26 | E26: PIRMD | F26: =IFERROR((IF(INDEX(Vingrinājumi[],VingrinājumuBeiguDatums-VingrinājumuRindasSākums-H26,1)<>"",INDEX(Vingrinājumi[],VingrinājumuBeiguDatums-VingrinājumuRindasSākums-H26,2),0)),0) -> 35 | G26: =IFERROR((IF(INDEX(Vingrinājumi[],VingrinājumuBeiguDatums-VingrinājumuRindasSākums-H26,2)<>"",INDEX(Vingrinājumi[],VingrinājumuBeiguDatums-VingrinājumuRindasSākums-H26,3),0)),0) -> 320 | H26: 2
D27: =IFERROR(IF(INDEX(Vingrinājumi[],VingrinājumuBeiguDatums-VingrinājumuRindasSākums-H27,1)<>"",INDEX(Vingrinājumi[],VingrinājumuBeiguDatums-VingrinājumuRindasSākums-H27,1)),"") -> 2022-12-25 | E27: SVĒTD | F27: =IFERROR((IF(INDEX(Vingrinājumi[],VingrinājumuBeiguDatums-VingrinājumuRindasSākums-H27,1)<>"",INDEX(Vingrinājumi[],VingrinājumuBeiguDatums-VingrinājumuRindasSākums-H27,2),0)),0) -> 45 | G27: =IFERROR((IF(INDEX(Vingrinājumi[],VingrinājumuBeiguDatums-VingrinājumuRindasSākums-H27,2)<>"",INDEX(Vingrinājumi[],VingrinājumuBeiguDatums-VingrinājumuRindasSākums-H27,3),0)),0) -> 350 | H27: 3
D28: =IFERROR(IF(INDEX(Vingrinājumi[],VingrinājumuBeiguDatums-VingrinājumuRindasSākums-H28,1)<>"",INDEX(Vingrinājumi[],VingrinājumuBeiguDatums-VingrinājumuRindasSākums-H28,1)),"") -> 2022-12-24 | E28: SESTD | F28: =IFERROR((IF(INDEX(Vingrinājumi[],VingrinājumuBeiguDatums-VingrinājumuRindasSākums-H28,1)<>"",INDEX(Vingrinājumi[],VingrinājumuBeiguDatums-VingrinājumuRindasSākums-H28,2),0)),0) -> 20 | G28: =IFERROR((IF(INDEX(Vingrinājumi[],VingrinājumuBeiguDatums-VingrinājumuRindasSākums-H28,2)<>"",INDEX(Vingrinājumi[],VingrinājumuBeiguDatums-VingrinājumuRindasSākums-H28,3),0)),0) -> 295 | H28: 4
D29: =IFERROR(IF(INDEX(Vingrinājumi[],VingrinājumuBeiguDatums-VingrinājumuRindasSākums-H29,1)<>"",INDEX(Vingrinājumi[],VingrinājumuBeiguDatums-VingrinājumuRindasSākums-H29,1)),"") -> 2022-12-23 | E29: PIEKTD | F29: =IFERROR((IF(INDEX(Vingrinājumi[],VingrinājumuBeiguDatums-VingrinājumuRindasSākums-H29,1)<>"",INDEX(Vingrinājumi[],VingrinājumuBeiguDatums-VingrinājumuRindasSākums-H29,2),0)),0) -> 40 | G29: =IFERROR((IF(INDEX(Vingrinājumi[],VingrinājumuBeiguDatums-VingrinājumuRindasSākums-H29,2)<>"",INDEX(Vingrinājumi[],VingrinājumuBeiguDatums-VingrinājumuRindasSākums-H29,3),0)),0) -> 270 | H29: 5
D30: =IFERROR(IF(INDEX(Vingrinājumi[],VingrinājumuBeiguDatums-VingrinājumuRindasSākums-H30,1)<>"",INDEX(Vingrinājumi[],VingrinājumuBeiguDatums-VingrinājumuRindasSākums-H30,1)),"") -> 2022-12-22 | E30: CETURTD | F30: =IFERROR((IF(INDEX(Vingrinājumi[],VingrinājumuBeiguDatums-VingrinājumuRindasSākums-H30,1)<>"",INDEX(Vingrinājumi[],VingrinājumuBeiguDatums-VingrinājumuRindasSākums-H30,2),0)),0) -> 45 | G30: =IFERROR((IF(INDEX(Vingrinājumi[],VingrinājumuBeiguDatums-VingrinājumuRindasSākums-H30,2)<>"",INDEX(Vingrinājumi[],VingrinājumuBeiguDatums-VingrinājumuRindasSākums-H30,3),0)),0) -> 325 | H30: 6
D31: =IFERROR(IF(INDEX(Vingrinājumi[],VingrinājumuBeiguDatums-VingrinājumuRindasSākums-H31,1)<>"",INDEX(Vingrinājumi[],VingrinājumuBeiguDatums-VingrinājumuRindasSākums-H31,1)),"") -> 2022-12-21 | E31: TREŠD | F31: =IFERROR((IF(INDEX(Vingrinājumi[],VingrinājumuBeiguDatums-VingrinājumuRindasSākums-H31,1)<>"",INDEX(Vingrinājumi[],VingrinājumuBeiguDatums-VingrinājumuRindasSākums-H31,2),0)),0) -> 40 | G31: =IFERROR((IF(INDEX(Vingrinājumi[],VingrinājumuBeiguDatums-VingrinājumuRindasSākums-H31,2)<>"",INDEX(Vingrinājumi[],VingrinājumuBeiguDatums-VingrinājumuRindasSākums-H31,3),0)),0) -> 175 | H31: 7
D32: =IFERROR(IF(INDEX(Vingrinājumi[],VingrinājumuBeiguDatums-VingrinājumuRindasSākums-H32,1)<>"",INDEX(Vingrinājumi[],VingrinājumuBeiguDatums-VingrinājumuRindasSākums-H32,1)),"") -> 2022-12-20 | E32: OTRD | F32: =IFERROR((IF(INDEX(Vingrinājumi[],VingrinājumuBeiguDatums-VingrinājumuRindasSākums-H32,1)<>"",INDEX(Vingrinājumi[],VingrinājumuBeiguDatums-VingrinājumuRindasSākums-H32,2),0)),0) -> 30 | G32: =IFERROR((IF(INDEX(Vingrinājumi[],VingrinājumuBeiguDatums-VingrinājumuRindasSākums-H32,2)<>"",INDEX(Vingrinājumi[],VingrinājumuBeiguDatums-VingrinājumuRindasSākums-H32,3),0)),0) -> 335 | H32: 8
D33: =IFERROR(IF(INDEX(Vingrinājumi[],VingrinājumuBeiguDatums-VingrinājumuRindasSākums-H33,1)<>"",INDEX(Vingrinājumi[],VingrinājumuBeiguDatums-VingrinājumuRindasSākums-H33,1)),"") -> 2022-12-19 | E33: PIRMD | F33: =IFERROR((IF(INDEX(Vingrinājumi[],VingrinājumuBeiguDatums-VingrinājumuRindasSākums-H33,1)<>"",INDEX(Vingrinājumi[],VingrinājumuBeiguDatums-VingrinājumuRindasSākums-H33,2),0)),0) -> 40 | G33: =IFERROR((IF(INDEX(Vingrinājumi[],VingrinājumuBeiguDatums-VingrinājumuRindasSākums-H33,2)<>"",INDEX(Vingrinājumi[],VingrinājumuBeiguDatums-VingrinājumuRindasSākums-H33,3),0)),0) -> 205 | H33: 9
D34: =IFERROR(IF(INDEX(Vingrinājumi[],VingrinājumuBeiguDatums-VingrinājumuRindasSākums-H34,1)<>"",INDEX(Vingrinājumi[],VingrinājumuBeiguDatums-VingrinājumuRindasSākums-H34,1)),"") -> 2022-12-18 | E34: SVĒTD | F34: =IFERROR((IF(INDEX(Vingrinājumi[],VingrinājumuBeiguDatums-VingrinājumuRindasSākums-H34,1)<>"",INDEX(Vingrinājumi[],VingrinājumuBeiguDatums-VingrinājumuRindasSākums-H34,2),0)),0) -> 20 | G34: =IFERROR((IF(INDEX(Vingrinājumi[],VingrinājumuBeiguDatums-VingrinājumuRindasSākums-H34,2)<>"",INDEX(Vingrinājumi[],VingrinājumuBeiguDatums-VingrinājumuRindasSākums-H34,3),0)),0) -> 285 | H34: 10
D35: =IFERROR(IF(INDEX(Vingrinājumi[],VingrinājumuBeiguDatums-VingrinājumuRindasSākums-H35,1)<>"",INDEX(Vingrinājumi[],VingrinājumuBeiguDatums-VingrinājumuRindasSākums-H35,1)),"") -> 2022-12-17 | E35: SESTD | F35: =IFERROR((IF(INDEX(Vingrinājumi[],VingrinājumuBeiguDatums-VingrinājumuRindasSākums-H35,1)<>"",INDEX(Vingrinājumi[],VingrinājumuBeiguDatums-VingrinājumuRindasSākums-H35,2),0)),0) -> 25 | G35: =IFERROR((IF(INDEX(Vingrinājumi[],VingrinājumuBeiguDatums-VingrinājumuRindasSākums-H35,2)<>"",INDEX(Vingrinājumi[],VingrinājumuBeiguDatums-VingrinājumuRindasSākums-H35,3),0)),0) -> 125 | H35: 11
D36: =IFERROR(IF(INDEX(Vingrinājumi[],VingrinājumuBeiguDatums-VingrinājumuRindasSākums-H36,1)<>"",INDEX(Vingrinājumi[],VingrinājumuBeiguDatums-VingrinājumuRindasSākums-H36,1)),"") -> 2022-12-16 | E36: PIEKTD | F36: =IFERROR((IF(INDEX(Vingrinājumi[],VingrinājumuBeiguDatums-VingrinājumuRindasSākums-H36,1)<>"",INDEX(Vingrinājumi[],VingrinājumuBeiguDatums-VingrinājumuRindasSākums-H36,2),0)),0) -> 30 | G36: =IFERROR((IF(INDEX(Vingrinājumi[],VingrinājumuBeiguDatums-VingrinājumuRindasSākums-H36,2)<>"",INDEX(Vingrinājumi[],VingrinājumuBeiguDatums-VingrinājumuRindasSākums-H36,3),0)),0) -> 150 | H36: 12
